Cogmind - Beta 12 @@@ ROGUE MODE // 2023.04.16 @ 14:43:32 // Winter2019/RPGLIKE Player: ArabianSandBoa Result: Destroyed self with Firepult Performance ------------- Evolutions (5) 2500 Regions Visited (12) 2400 Robots Destroyed (381) 1905 Value Destroyed (18028) 18028 Prototype IDs (40) 800 Alien Tech Used (0) 0 Bonus (10793) 10793 TOTAL SCORE: 36426 Bonus ------- Triggered High Security 500 High Alert Combat Kills 8977 Follower Combat Kills 238 Entered Garrisons 400 Entered DSFs 500 Aligned with FarCom 300 Friendly Fire -122 Cogmind --------- Core Integrity 0/1150 Matter 224/300 Energy 284/430 System Corruption 6% Temperature Critical (814) Movement Treading (135) Location -5/Factory Parts ------- > --- POWER (3) -------- Heavy Deuterium Engine Light Angular Momentum Engine Light Antimatter Reactor > --- PROPULSION (4) --- Experimental Biometal Heavy Treads Potential Leg Cooled Q-thruster > --- UTILITY (11) ----- Improved Cryofiber Web Advanced Gravity Neutralizer Machine Analyzer Improved Weapon Cycler Improved Thermal Shield Hacking Suite Hacking Suite Hacking Suite System Shield > --- WEAPON (2) ------- Firepult > --- INVENTORY (2) ---- Potential Leg Improved KE Penetrator Peak State ------------ > --- POWER ------------ Heavy Deuterium Engine Light Angular Momentum Engine Light Antimatter Reactor > --- PROPULSION ------- Experimental Biometal Heavy Treads Potential Leg Cooled Q-thruster > --- UTILITY ---------- Improved Cryofiber Web Experimental Coolant Injector Advanced Gravity Neutralizer Machine Analyzer Improved Weapon Cycler Improved Thermal Shield Hacking Suite Hacking Suite Hacking Suite System Shield > --- WEAPON ----------- Firepult > --- INVENTORY -------- Potential Leg Improved KE Penetrator [Rating: 127] Favorites ----------- Power Heavy Deuterium Engine Engine Heavy Deuterium Engine Power Core Micro Nuclear Core Reactor Light Antimatter Reactor Propulsion Potential Leg Treads Improved Heavy Treads Leg Potential Leg Hover Unit Backup Propulsion I Flight Unit Flight Unit Utility Hacking Suite Device Improved Terrain Scanner Processor Machine Analyzer Hackware Hacking Suite Protection Insulated Plating Weapon Firepult Energy Gun EM Pulse Gun Energy Cannon Firepult Ballistic Gun Improved KE Penetrator Launcher Grenade Launcher Impact Weapon Heavy Hammer Build | -11 -10 -10 -10 -9 -8 -7 -7 -7 -7 -6 -6 -5 ------- Run | Jun Mat Min Exi Min Mat Fac Gar Fac Gar Fac DSF Fac Slots Evolved 16 | . 2 2 3 1 5 1 . . . . 1 1 Power 2 | . . . . 1 1 . . . . . . . Propulsion 3 | . 1 2 . . . . . . . . . . Utility 10 | . . . 3 . 4 1 . . . . 1 1 Weapon 1 | . 1 . . . . . . . . . . . Parts Attached 78 | . 8 4 8 3 22 5 4 . 1 . 7 16 Power 10 | . . . 2 1 4 . . . . . . 3 Engine 5 | . . . . . 3 . . . . . . 2 Core 4 | . . . 2 1 1 . . . . . . . Reactor 1 | . . . . . . . . . . . . 1 Propulsion 17 | . 2 4 4 . 2 . 1 . . . . 4 Treads 3 | . . . . . . . 1 . . . . 2 Leg 7 | . . . 4 . 2 . . . . . . 1 Wheel . | . . . . . . . . . . . . . Hover . | . . . . . . . . . . . . . Flight 7 | . 2 4 . . . . . . . . . 1 Utility 36 | . 1 . 1 2 14 2 3 . 1 . 7 5 Device 14 | . 1 . 1 . 3 1 2 . . . 1 5 Storage . | . . . . . . . . . . . . . Processor 4 | . . . . . 4 . . . . . . . Hackware 10 | . . . . . 4 1 . . . . 5 . Protection 8 | . . . . 2 3 . 1 . 1 . 1 . Artifact . | . . . . . . . . . . . . . Weapon 15 | . 5 . 1 . 2 3 . . . . . 4 Energy Gun 1 | . . . . . 1 . . . . . . . Energy Cannon 7 | . . . 1 . 1 3 . . . . . 2 Ballistic Gun 1 | . . . . . . . . . . . . 1 Ballistic Cannon . | . . . . . . . . . . . . . Launcher 2 | . 1 . . . . . . . . . . 1 Special Weapon . | . . . . . . . . . . . . . Impact Weapon 4 | . 4 . . . . . . . . . . . Slashing Weapon . | . . . . . . . . . . . . . Piercing Weapon . | . . . . . . . . . . . . . Special Melee Weapon . | . . . . . . . . . . . . . Unidentified Prototypes 12 | . . . . . 2 1 1 . . . . 8 Parts Lost 4 | . . . . . . . 1 . . . 1 2 Power . | . . . . . . . . . . . . . Propulsion . | . . . . . . . . . . . . . Utility 4 | . . . . . . . 1 . . . 1 2 Weapon . | . . . . . . . . . . . . . Highest Loss Streak 1 | . . . . . . . 1 . . . 1 1 To Critical Strikes . | . . . . . . . . . . . . . Average Slot Usage (%) 83 | . 68 94 62 77 91 93 92 88 87 83 85 81 Engine 11 | . 18 14 2 . 13 16 16 16 16 16 15 12 Core 2 | . . . 7 15 1 . . . . . . . Treads 1 | . . . . . . . . 5 5 5 5 5 Leg 17 | . . . 23 33 26 22 19 11 11 11 10 8 Flight 2 | . 9 35 1 . . . . . . . . 1 Device 15 | . 7 14 15 16 15 11 17 22 21 16 10 19 Processor 4 | . . . . . 5 11 9 5 5 5 5 5 Hackware 9 | . . . . . 10 14 11 11 11 11 22 20 Protection 6 | . . . . 2 9 10 10 11 11 11 8 3 Energy Cannon 5 | . . . 8 8 6 5 5 5 5 5 5 4 Impact Weapon 3 | . 23 29 2 . . . . . . . . . Naked Turns . | . . . . . . . . . . . . . Heaviest Build 70 | 7 12 12 30 47 68 68 70 70 70 68 68 64 Greatest Support 111 | 8 14 26 100 70 88 70 106 70 70 70 85 111 Greatest Overweight (x) 1 | . 1 . . . . . . . . . . 1 Average Overweight (x) . | . . . . . . . . . . . . . Largest Inventory Capacity 2 | . 1 1 1 2 2 2 2 2 2 2 2 2 Average Capacity 1 | . . 1 1 1 2 2 2 2 2 2 2 2 Most Carried 2 | . 1 1 1 2 2 2 2 2 2 2 2 2 Average Carried 1 | . . 1 . 1 1 1 1 2 1 2 2 1 Final Capacity 2 | . 1 1 1 2 2 2 2 2 2 2 2 2 Final Carried 2 | . 1 1 1 2 2 2 2 2 2 2 2 2 Class Distribution -------------------- 62% | Hacker-Skirmisher 11% | Hacker-Mutant 11% | Wizard-Skirmisher 6% | Scavenger-Skirmisher 4% | Wizard-Mutant Dominant Class ---------------- Hacker-Mutant | -10/Materials Hacker-Mutant | -10/Mines Hacker-Skirmisher | -10/Exiles Scavenger-Skirmisher | -9/Mines Hacker-Skirmisher | -8/Materials Hacker-Skirmisher | -7/Factory Hacker-Skirmisher | -7/Garrison Hacker-Skirmisher | -7/Factory Hacker-Skirmisher | -7/Garrison Hacker-Skirmisher | -6/Factory Wizard-Skirmisher | -6/DSF Wizard-Skirmisher | -5/Factory Resources | -11 -10 -10 -10 -9 -8 -7 -7 -7 -7 -6 -6 -5 ----------- Run | Jun Mat Min Exi Min Mat Fac Gar Fac Gar Fac DSF Fac Matter Collected 1355 | 200 250 40 85 23 238 108 118 . 16 . 65 212 Remotely . | . . . . . . . . . . . . . Salvage Created 17160 | . 708 153 3113 180 2584 1271 1644 47 1826 . 393 5241 Parts 479 | . 38 8 98 14 95 43 41 . 25 . 5 112 Haulers Intercepted 11 | . 2 . . . 4 . . . . . . 5 Recyclers Shooed 5 | . . . . . 1 2 . . . . . 2 Parts Field Recycled . | . . . . . . . . . . . . . Retrieved Matter . | . . . . . . . . . . . . . Parts Self-Destructed . | . . . . . . . . . . . . . Prevented . | . . . . . . . . . . . . . Kills | -11 -10 -10 -10 -9 -8 -7 -7 -7 -7 -6 -6 -5 ------- Run | Jun Mat Min Exi Min Mat Fac Gar Fac Gar Fac DSF Fac Combat Hostiles Destroyed 320 | . 23 5 75 8 47 17 34 . 29 . 7 75 Melee 9 | . 5 3 . . 1 . . . . . . . Guns 1 | . 1 . . . . . . . . . . . Cannons 31 | . . . 7 1 9 2 3 . 2 . 2 5 AOE 147 | . 11 . 48 5 20 11 19 . 15 . 3 15 Classes Destroyed 20 | . 7 1 4 1 5 . . . . . . 2 Worker 23 | . . . . . 7 3 . . . . . 13 Builder 15 | . 1 1 . . . 2 . . . . . 11 Tunneler 4 | . . 1 . . 2 1 . . . . . . Hauler 11 | . 2 . . . 4 . . . . . . 5 Recycler 12 | . 1 1 . 1 1 5 . . . . . 3 Carrier 1 | . . . . . 1 . . . . . . . Mechanic 6 | . . . . . 1 1 . . . . . 4 Operator 5 | . 1 . . . 3 . . . . . . 1 Watcher 9 | . 3 . . . 3 2 . . . . . 1 Swarmer 37 | . 6 5 . . 3 4 8 . 4 . 3 4 Saboteur 3 | . . . . . . . . . . . . 3 Grunt 169 | . 17 . 35 6 30 8 20 . 19 . 1 33 Brawler 16 | . . . 5 . 3 . . . . . . 8 Duelist 11 | . . . 3 . 2 1 1 . 1 . 1 2 Protector 4 | . . . . . . . . . . . . 4 Sentry 21 | . . . . 2 7 1 5 . 3 . . 3 Hunter 36 | . . . 20 . 1 2 . . 2 . 1 10 Programmer 19 | . . . 12 . . 1 . . . . . 6 Heavy 4 | . . . . . 1 . . . . . 1 2 Zionite 1 | . . . . . 1 . . . . . . . Best Kill Streak 24 | . 17 3 23 7 8 15 6 . 9 . 3 24 Combat Bots Only 23 | . 11 3 23 6 7 6 6 . 9 . 3 20 Max Kills in Single Turn 8 | . 3 1 8 3 4 4 3 . 3 . 2 6 Gunslinging . | . . . . . . . . . . . . . Exploded 8 | . 3 . 8 3 2 3 2 . 2 . 2 2 Melee 1 | . 1 1 . . 1 . . . . . . . Uniques/NPCs Destroyed . | . . . . . . . . . . . . . Combat | -11 -10 -10 -10 -9 -8 -7 -7 -7 -7 -6 -6 -5 -------- Run | Jun Mat Min Exi Min Mat Fac Gar Fac Gar Fac DSF Fac Damage Taken 6821 | . 626 111 612 107 749 375 363 . 483 . 363 3032 Core 5244 | . 553 90 508 85 540 252 239 . 331 . 230 2416 Absorbed by Shields 665 | . . . . . 256 62 151 . 196 . . . Redirected to Core 3933 | . 219 68 349 76 400 252 194 . 301 . 213 1861 Regen/Repaired (Parts) 23 | . 18 . . . . . . . . . . 5 Core Remaining (%) 96 | 100 . . . 90 96 . . . 97 . 98 . Volleys Fired 384 | . 30 . 27 8 99 28 53 1 55 . 11 72 Largest 1 | . 1 . 1 1 1 1 1 1 1 . 1 1 Hottest 250 | . 40 . 250 250 250 250 250 250 250 . 250 250 Shots Fired 384 | . 30 . 27 8 99 28 53 1 55 . 11 72 Gun 13 | . 13 . . . . . . . . . . . Cannon 354 | . . . 27 8 99 28 53 1 55 . 11 72 Launcher 17 | . 17 . . . . . . . . . . . Special . | . . . . . . . . . . . . . Kinetic . | . . . . . . . . . . . . . Thermal 354 | . . . 27 8 99 28 53 1 55 . 11 72 Explosive 17 | . 17 . . . . . . . . . . . Electromagnetic 13 | . 13 . . . . . . . . . . . Robot Hit Streak 16 | . 6 . 6 15 10 8 8 . 16 . 5 8 Robot Miss Streak 7 | . 1 . 7 2 5 5 5 . 7 . 4 6 Penetration Max . | . . . . . . . . . . . . . Secondary Targets . | . . . . . . . . . . . . . Shots Hit Robots 212 | . 42 8 17 3 40 19 18 . 19 . 10 36 Core Hits 745 | . 25 2 137 10 117 73 74 . 69 . 23 215 Critical Kills 3 | . 2 1 . . . . . . . . . . Critical Parts Destroyed 5 | . 3 2 . . . . . . . . . . Critical Strikes 8 | . 5 3 . . . . . . . . . . Smash 8 | . 5 3 . . . . . . . . . . Melee Attacks 69 | . 54 15 . . . . . . . . . . Impact 69 | . 54 15 . . . . . . . . . . Slashing . | . . . . . . . . . . . . . Piercing . | . . . . . . . . . . . . . Sneak Attacks 6 | . 3 3 . . . . . . . . . . Combat Hostiles . | . . . . . . . . . . . . . Follow-up Attacks 2 | . 2 . . . . . . . . . . . Damage Inflicted 30163 | . 2319 520 4227 485 4318 2210 3166 . 2984 . 926 9008 Guns 148 | . 148 . . . . . . . . . . . Cannons 4716 | . . . 530 95 894 355 606 . 519 . 176 1541 Explosions 23641 | . 1058 . 3697 390 3403 1855 2560 . 2465 . 750 7463 Melee 1633 | . 1113 520 . . . . . . . . . . Ramming 25 | . . . . . 21 . . . . . . 4 Kinetic . | . . . . . . . . . . . . . Thermal 26554 | . 37 . 4227 485 4297 1606 3166 . 2984 . 926 8826 Explosive 1109 | . 1021 . . . . . . . . . . 88 Electromagnetic 842 | . 148 . . . . 604 . . . . . 90 Impact 1633 | . 1113 520 . . . . . . . . . . Slashing . | . . . . . . . . . . . . . Piercing . | . . . . . . . . . . . . . Highest Corruption 6 | . . . 2 2 . 1 1 1 1 . . 6 Average Corruption 1 | . . . 2 2 . 1 1 1 1 . . 2 Corruption Purged . | . . . . . . . . . . . . . Corruption Blocked . | . . . . . . . . . . . . . Effects 40 | . . . 13 6 . . 6 . 7 . . 8 Message Errors 12 | . . . 3 1 . . 3 . 3 . . 2 Matter Fused 6 | . . . 1 2 . . 1 . 1 . . 1 Heat Flow Errors 7 | . . . 5 1 . . . . . . . 1 Energy Discharges 5 | . . . 2 1 . . . . 1 . . 1 Parts Rejected 2 | . . . 1 . . . . . . . . 1 Data Loss (minor) 2 | . . . 1 . . . . . . . . 1 Data Loss (major) 3 | . . . . 1 . . 2 . . . . . Misfires 1 | . . . . . . . . . 1 . . . Alerts 1 | . . . . . . . . . . . . 1 Weapon Failures 1 | . . . . . . . . . 1 . . . Overload Shots . | . . . . . . . . . . . . . Overflow Damage 752 | . 324 269 19 . 68 42 6 . . . 15 9 Projectiles 40 | . . . . . 19 16 5 . . . . . Explosions 121 | . 10 . 19 . 41 26 1 . . . 15 9 Melee 591 | . 314 269 . . 8 . . . . . . . Knockbacks 5 | . 5 . . . . . . . . . . . Impact 4 | . 4 . . . . . . . . . . . Kinetic . | . . . . . . . . . . . . . Secondary 1 | . 1 . . . . . . . . . . . Self-Inflicted Damage 1027 | . 101 55 45 75 141 58 230 . 219 . 3 100 Shots 103 | . 2 1 5 5 14 4 29 . 25 . 2 16 Rammed 1 | . . . . . . . . . . . . 1 Targets Rammed 3 | . . . . . 2 . . . . . . 1 Kicked 2 | . . . . . 2 . . . . . . . Crushed . | . . . . . . . . . . . . . Highest Temperature 1296 | . 30 . 252 223 389 386 386 140 391 . 931 1296 Average Temperature 167 | . 14 . 97 95 117 130 134 85 145 . 277 385 Received Heat Transfer 1042 | . 213 . 30 . 246 42 95 . 140 . 27 249 Effects 46 | . . . . . 5 2 2 . 2 . 5 30 Shutdowns 7 | . . . . . 1 . 1 . 1 . 3 1 Energy Bleed 6 | . . . . . 2 . . . . . . 4 Interference 5 | . . . . . 2 1 . . . . . 2 Matter Decay 4 | . . . . . . 1 1 . . . . 2 Short Circuit 6 | . . . . . . . . . 1 . 1 4 Damage (minor) 4 | . . . . . . . . . . . . 4 Damage (major) 11 | . . . . . . . . . . . 1 10 Damage (core) 3 | . . . . . . . . . . . . 3 Siege Activations . | . . . . . . . . . . . . . Robots Corrupted 1 | . 1 . . . . . . . . . . . Combat Hostiles 1 | . 1 . . . . . . . . . . . Parts Fried 21 | . 15 3 . . 2 1 . . . . . . Impact Corruptions 25 | . 12 11 . . 2 . . . . . . . Robots Melted 149 | . . . 20 2 24 4 16 . 18 . 2 63 Combat Hostiles 124 | . . . 20 2 17 4 12 . 12 . 2 55 Parts Melted 673 | . . . 123 10 93 28 76 . 67 . 23 253 Heat Transferred 138065 | . 50 . 25440 2640 23249 7430 14951 . 15837 . 5280 43188 Parts Sabotaged . | . . . . . . . . . . . . . Parts Stolen . | . . . . . . . . . . . . . Parts Stripped . | . . . . . . . . . . . . . Power Chain Reactions 2 | . 1 . . . . 1 . . . . . . Missiles Intercepted . | . . . . . . . . . . . . . Alert | -11 -10 -10 -10 -9 -8 -7 -7 -7 -7 -6 -6 -5 ------- Run | Jun Mat Min Exi Min Mat Fac Gar Fac Gar Fac DSF Fac Peak Influence 2926 | . 993 685 . 409 2522 2166 2756 1476 2304 1209 1050 2926 Initial 1516 | . . 387 . . 81 1147 1516 1446 1033 1209 846 550 Average 1413 | . 647 587 . 226 1557 1639 2273 1476 1645 1209 943 1507 Maximum Alert Level 5 | . 3 2 . 2 5 5 5 4 5 4 3 5 Low Security (%) 3 | 100 15 . . 25 1 . . . . . . . Level 1 6 | . 4 3 . 69 5 . . . . . . . Level 2 11 | . 12 96 . 5 10 . . . . . . 12 Level 3 15 | . 66 . . . 15 . . . 13 . 100 1 Level 4 20 | . . . . . 13 54 1 100 24 100 . 55 Level 5 38 | . . . . . 54 45 98 . 61 . . 1 High Security 4 | . . . . . . . . . . . . 29 Max Security . | . . . . . . . . . . . . . Sterilizations 2 | . . . . . 1 . . . . . 1 . Squads Dispatched 41 | . 9 . . . 9 6 . . . . 1 16 Investigation 13 | . 7 . . . 4 2 . . . . . . Extermination 2 | . . . . . . 1 . . . . . 1 Reinforcement 12 | . 2 . . . 2 2 . . . . 1 5 Assault 13 | . . . . . 3 1 . . . . . 9 Garrison 1 | . . . . . . . . . . . . 1 Intercept . | . . . . . . . . . . . . . Searches Triggered . | . . . . . . . . . . . . . Construction Impeded 4 | . . . . . . 2 . . . . . 2 Haulers Reinforced 1 | . . . . . . . . . . . . 1 Active Scanning Responses . | . . . . . . . . . . . . . Cargo Convoy Interrupts 1 | . . . . . . . . . . . . 1 Stealth | -11 -10 -10 -10 -9 -8 -7 -7 -7 -7 -6 -6 -5 --------- Run | Jun Mat Min Exi Min Mat Fac Gar Fac Gar Fac DSF Fac Distress Signals 11 | . 1 . . . 5 2 . . . . . 3 Communications Jammed . | . . . . . . . . . . . . . Distress Signals . | . . . . . . . . . . . . . Times Spotted 351 | . 28 10 60 7 62 20 30 . 28 . 10 96 Peak Tracking Total 23 | . 5 3 23 5 5 6 5 . 9 . 4 11 Tactical Retreats 8 | . . 2 . . . 2 1 . . . 2 1 Traps | -11 -10 -10 -10 -9 -8 -7 -7 -7 -7 -6 -6 -5 ------- Run | Jun Mat Min Exi Min Mat Fac Gar Fac Gar Fac DSF Fac Traps Triggered 12 | . 1 . . . . 4 4 . 3 . . . Indirectly . | . . . . . . . . . . . . . Trap Hack Attempts . | . . . . . . . . . . . . . Triggered . | . . . . . . . . . . . . . Disarmed . | . . . . . . . . . . . . . Reprogrammed 9 | . 9 . . . . . . . . . . . Reused . | . . . . . . . . . . . . . Traps Extracted . | . . . . . . . . . . . . . Installed . | . . . . . . . . . . . . . Triggered . | . . . . . . . . . . . . . Machines | -11 -10 -10 -10 -9 -8 -7 -7 -7 -7 -6 -6 -5 ---------- Run | Jun Mat Min Exi Min Mat Fac Gar Fac Gar Fac DSF Fac Machines Disabled 175 | . 19 6 5 12 37 34 7 2 10 . 2 41 Max in Single Turn 19 | . 3 2 2 6 3 4 1 2 2 . 1 19 Garrison Access 1 | . . . . . 1 . . . . . . . Garrison Relay 10 | . . . . . . . 5 . 5 . . . Phase Generator 1 | . . . . . . . . . 1 . . . Machines Repaired . | . . . . . . . . . . . . . Machines Sabotaged . | . . . . . . . . . . . . . Overloaded Fab Kills . | . . . . . . . . . . . . . Hacking | -11 -10 -10 -10 -9 -8 -7 -7 -7 -7 -6 -6 -5 --------- Run | Jun Mat Min Exi Min Mat Fac Gar Fac Gar Fac DSF Fac Machines Accessed 31 | . 8 . 1 1 6 5 3 1 3 1 . 2 Terminals 20 | . 5 . . 1 5 1 3 . 3 1 . 1 Fabricators . | . . . . . . . . . . . . . Repair Stations 2 | . 1 . . . . . . . . . . 1 Recycling Units 5 | . 2 . . . . 3 . . . . . . Scanalyzers 1 | . . . . . 1 . . . . . . . Garrison Access 2 | . . . . . . 1 . 1 . . . . Total Hacks 97 | . 36 . 1 2 24 15 6 1 5 1 . 6 Successful 59 | . 24 . 1 1 14 7 2 1 3 1 . 5 Failed 37 | . 11 . . 1 10 8 4 . 2 . . 1 Catastrophic . | . . . . . . . . . . . . . Database Lockouts 1 | . 1 . . . . . . . . . . . Manual 46 | . 24 . 1 . 17 4 . . . . . . Terminals 73 | . 30 . . 2 23 2 6 . 5 1 . 4 Fabricators . | . . . . . . . . . . . . . Repair Stations 5 | . 3 . . . . . . . . . . 2 Recycling Units 15 | . 3 . . . . 12 . . . . . . Scanalyzers 1 | . . . . . 1 . . . . . . . Garrison Access 2 | . . . . . . 1 . 1 . . . . Terminal Hacks 33 | . 12 . 1 1 8 2 2 . 3 1 . 3 Robot Analysis 6 | . 4 . . . 1 . . . . . . 1 Prototype ID Bank 2 | . 2 . . . . . . . . . . . Open Door 1 | . . . . . . . 1 . . . . . Open DSF 1 | . . . . . . . . . . 1 . . Branch Access Points 3 | . 1 . . . . 1 . . . . . 1 Emergency Access Points 2 | . . . . . 1 . . . 1 . . . Garrison Index 1 | . . . . . 1 . . . . . . . Unreport Threat 1 | . . . . . . . . . . . . 1 Locate Traps 1 | . 1 . . . . . . . . . . . Reprogram Traps 2 | . 2 . . . . . . . . . . . Dispatch Records 1 | . . . . . 1 . . . . . . . Hauler Manifests 4 | . . . . . 3 1 . . . . . . Zone Layout 4 | . 2 . . 1 1 . . . . . . . Garrison Registry 1 | . . . . . . . . . 1 . . . Patrol Navigation 1 | . . . . . . . 1 . . . . . Security Stations 1 | . . . . . . . . . 1 . . . EX-Prototype ID Bank 1 | . . . 1 . . . . . . . . . Fabricator Hacks . | . . . . . . . . . . . . . Repair Station Hacks 5 | . 3 . . . . . . . . . . 2 Scan Component 2 | . 1 . . . . . . . . . . 1 Repair 2 | . 1 . . . . . . . . . . 1 Refit 1 | . 1 . . . . . . . . . . . Recycling Unit Hacks 3 | . 1 . . . . 2 . . . . . . Retrieve Components 3 | . 1 . . . . 2 . . . . . . Scanalyzer . | . . . . . . . . . . . . . Garrison Access Hacks 2 | . . . . . . 1 . 1 . . . . Unlock Access 2 | . . . . . . 1 . 1 . . . . Unauthorized Hacks 16 | . 8 . . . 6 2 . . . . . . Terminals 11 | . 6 . . . 5 . . . . . . . Assimilate 1 | . 1 . . . . . . . . . . . Botnet 5 | . 2 . . . 3 . . . . . . . Search 5 | . 3 . . . 2 . . . . . . . Fabricators . | . . . . . . . . . . . . . Repair Stations . | . . . . . . . . . . . . . Recycling Units 4 | . 2 . . . . 2 . . . . . . Mask 1 | . . . . . . 1 . . . . . . Tunnel 3 | . 2 . . . . 1 . . . . . . Scanalyzers 1 | . . . . . 1 . . . . . . . Extract 1 | . . . . . 1 . . . . . . . Garrison Access . | . . . . . . . . . . . . . Data Cores Recovered . | . . . . . . . . . . . . . Used . | . . . . . . . . . . . . . Hacking Detections 14 | . 4 . . . 5 2 1 . 1 . . 1 Full Trace Events 6 | . 1 . . . 2 1 1 . 1 . . . Feedback Events 1 | . . . . . . . 1 . . . . . Hackware Fried 1 | . . . . . . . 1 . . . . . Feedback Blocked . | . . . . . . . . . . . . . Robot Schematics Acquired . | . . . . . . . . . . . . . Robots Built . | . . . . . . . . . . . . . Authchips . | . . . . . . . . . . . . . Time . | . . . . . . . . . . . . . Total Robot Build Rating . | . . . . . . . . . . . . . Part Schematics Acquired 12 | . . . . . 12 . . . . . . . Parts Built . | . . . . . . . . . . . . . Authchips . | . . . . . . . . . . . . . Time . | . . . . . . . . . . . . . Total Part Build Rating . | . . . . . . . . . . . . . Parts Repaired 2 | . 1 . . . . . . . . . . 1 Time 61 | . 26 . . . . . . . . . . 35 Parts Recycled . | . . . . . . . . . . . . . Recycled Matter . | . . . . . . . . . . . . . Retrieved Matter . | . . . . . . . . . . . . . Retrieved Components 16 | . 1 . . . . 15 . . . . . . Parts Scanalyzed . | . . . . . . . . . . . . . Part Schematics Acquired . | . . . . . . . . . . . . . Parts Damaged . | . . . . . . . . . . . . . Bothacking | -11 -10 -10 -10 -9 -8 -7 -7 -7 -7 -6 -6 -5 ------------ Run | Jun Mat Min Exi Min Mat Fac Gar Fac Gar Fac DSF Fac Used RIF Installer . | . . . . . . . . . . . . . Robots Hacked . | . . . . . . . . . . . . . Non-combat . | . . . . . . . . . . . . . Combat . | . . . . . . . . . . . . . Robot Hacks Applied . | . . . . . . . . . . . . . Relay Couplers Released 19 | . . . . . . . 9 . 10 . . . Machine Destruction 19 | . . . . . . . 9 . 10 . . . Fabnet Peak Effective % . | . . . . . . . . . . . . . Robots Rewired 3 | . . . . . . . . . 3 . . . Allies Hacked . | . . . . . . . . . . . . . Hacks Repelled . | . . . . . . . . . . . . . Allies | -11 -10 -10 -10 -9 -8 -7 -7 -7 -7 -6 -6 -5 -------- Run | Jun Mat Min Exi Min Mat Fac Gar Fac Gar Fac DSF Fac Total Allies 6 | . . . . 2 . . 1 . 3 . . . Largest Group 3 | . . . . 2 2 . 1 1 3 2 2 . Highest-Rated Group 95 | . . . . 40 40 . 39 39 95 70 70 . Highest-Rated Ally 39 | . . . . 31 31 . 39 39 39 39 39 . Total Orders . | . . . . . . . . . . . . . Ally Attacks 46 | . . . . . 20 . . . 11 . 15 . Total Damage 597 | . . . . . 256 . . . 135 . 206 . Kills 7 | . . . . . 5 . . . 1 . 1 . Allies Corrupted . | . . . . . . . . . . . . . Allies Melted . | . . . . . . . . . . . . . Intel | -11 -10 -10 -10 -9 -8 -7 -7 -7 -7 -6 -6 -5 ------- Run | Jun Mat Min Exi Min Mat Fac Gar Fac Gar Fac DSF Fac Robot Analysis Total 6 | . 4 . . . 1 . . . . . . 1 Derelict Logs Recovered 2 | . . 1 . 1 . . . . . . . . Drone Launches . | . . . . . . . . . . . . . Drone Recoveries . | . . . . . . . . . . . . . Exploration | -11 -10 -10 -10 -9 -8 -7 -7 -7 -7 -6 -6 -5 ------------- Run | Jun Mat Min Exi Min Mat Fac Gar Fac Gar Fac DSF Fac Turns Passed 7779 | 1 580 396 1186 446 1518 620 937 55 753 19 275 993 Spaces Moved 5932 | 1 565 966 683 421 1051 399 678 50 562 21 148 387 Core 172 | 1 171 . . . . . . . . . . . Treads 497 | . . . . . . . . . . . 111 386 Legs 3788 | . . . 568 421 1051 399 678 50 562 21 37 1 Wheels . | . . . . . . . . . . . . . Hover . | . . . . . . . . . . . . . Flight 1475 | . 394 966 115 . . . . . . . . . Fastest Speed 31 | 50 40 31 31 90 90 90 90 90 90 90 90 135 Average Speed 81 | 50 47 34 76 90 90 90 98 90 90 90 142 154 Slowest Speed 170 | 50 120 40 105 90 100 90 105 90 90 90 160 170 Overloaded Moves 123 | . . . 123 . . . . . . . . . Propulsion Burnouts . | . . . . . . . . . . . . . Robots Hopped 2 | . . 2 . . . . . . . . . . Cave-ins Triggered . | . . . . . . . . . . . . . Exploration Rate (%) 57 | 2 91 98 88 92 93 15 76 4 90 1 87 16 Regions Visited 12 Branch Regions 3 Pre-discovered Areas 3 | . 2 . . . . 1 . . . . . . Known Exits Taken 4 | . 1 . . . . 1 . 1 . 1 . . Unknown Exits Taken 5 | 1 . 1 1 1 1 . . . . . . . Scrap Searched 3 | . . 1 . 2 . . . . . . . . Spaces Dug 84 | . 2 . 11 . 71 . . . . . . . Terrain Destroyed 1293 | . 134 26 96 57 630 135 . . 69 . . 146 Melee 2 | . 2 . . . . . . . . . . . Projectile 53 | . . . 6 3 44 . . . . . . . AOE 1238 | . 132 26 90 54 586 135 . . 69 . . 146 Terrain Rammed . | . . . . . . . . . . . . . Walls Destroyed . | . . . . . . . . . . . . . Machines Disabled . | . . . . . . . . . . . . . Actions | -11 -10 -10 -10 -9 -8 -7 -7 -7 -7 -6 -6 -5 --------- Run | Jun Mat Min Exi Min Mat Fac Gar Fac Gar Fac DSF Fac Total 8424 | 1 763 999 1320 478 1523 633 912 59 772 20 204 740 Wait 1581 | . 90 11 552 38 273 176 133 8 96 . 18 186 Move 5918 | . 564 961 682 420 1050 399 677 50 561 20 147 387 Hop 2 | . . 2 . . . . . . . . . . Pick Up 18 | . . . 3 1 4 . 3 . 3 . . 4 Fast Attach 66 | . 8 3 8 3 18 5 3 . . . 6 12 Attach 8 | . . . . . 3 . 1 . . . . 4 Detach 6 | . 1 . . . . 1 . . . . . 4 Swap 4 | . . 1 . . 1 . . . 1 . 1 . Drop 65 | 1 5 1 10 . 17 4 6 . 4 . 5 12 Fire 384 | . 30 . 27 8 99 28 53 1 55 . 11 72 Melee 58 | . 43 15 . . . . . . . . . . Ram . | . . . . . . . . . . . . . Kick 2 | . . . . . 2 . . . . . . . Crush 1 | . . . . . . . . . . . . 1 Escape Stasis 27 | . . . . . . . 12 . 15 . . . Rewire 9 | . . . . . . . . . 9 . . . Trap . | . . . . . . . . . . . . . Miscellaneous 275 | . 22 5 38 8 56 20 24 . 28 . 16 58 Route ------- -11/Junkyard -10/Materials (discovered 5 exits: [*Mat x3] / *Min x2) -10/Mines (discovered 3 exits: [*Mat x2] / *Exi) -10/Exiles (discovered 2 exits: *Min x2) -9/Mines (discovered 2 exits: *Mat x2) -8/Materials (discovered 3 exits: *Fac x3) -7/Factory (discovered 3 exits: *Low x2 / Gar) -7/Garrison (discovered 3 exits: *Fac x3) -7/Factory -7/Garrison (discovered 3 exits: *Fac x3) -6/Factory -6/DSF -5/Factory (discovered 2 exits: Upp x2) History --------- Turn | Location | Event 2 | -11/Junkyard | Discovered new exit (range 0) 2 | -11/Junkyard | Entered Materials 127 | -10/Materials | Discovered new exit (range 8) 139 | -10/Materials | Reached level 2 154 | -10/Materials | Upgraded with Propulsion slot (x1) 156 | -10/Materials | Upgraded with Weapon slot (x1) 164 | -10/Materials | Destroyed 11 combat bots 248 | -10/Materials | Discovered new exit (range 16) 265 | -10/Materials | Discovered new exit (range 16) 290 | -10/Materials | Reached level 3 305 | -10/Materials | Identified exit to Mines 324 | -10/Materials | Build established: Hacker-Mutant 347 | -10/Materials | Core integrity fell below 50% 410 | -10/Materials | Repaired Flight Unit 444 | -10/Materials | Central database locked down 461 | -10/Materials | Discovered new exit (range 14) 529 | -10/Materials | Reached level 4 582 | -10/Materials | Entered Mines 596 | -10/Mines | Met a Derelict bent on vengeance 667 | -10/Mines | Discovered new exit (range 5) 683 | -10/Mines | Deemed a non-threat by the Exiles lab entrance 783 | -10/Mines | Reached level 5 798 | -10/Mines | Upgraded with Propulsion slot (x2) 878 | -10/Mines | Discovered new exit (range 11) 887 | -10/Mines | Learned Materials trap positions 977 | -10/Mines | Discovered new exit (range 5) 978 | -10/Mines | Entered Exiles 986 | -10/Exiles | Met 8R-AWN 991 | -10/Exiles | Met EX-HEX 1001 | -10/Exiles | Met EX-BIN 1005 | -10/Exiles | Aligned with FarCom system 1005 | -10/Exiles | Given EX-Vault access code 1012 | -10/Exiles | Opened EX-Vault 1016 | -10/Exiles | Found Potential Leg 1019 | -10/Exiles | Found Potential Leg 1037 | -10/Exiles | Warned to stay clear of 0b10 Research branches 1051 | -10/Exiles | Exiles lab attacked by MAIN.C 1102 | -10/Exiles | Found Firepult 1174 | -10/Exiles | Destroyed 7 combat bots 1187 | -10/Exiles | Reached level 6 1227 | -10/Exiles | Destroyed 23 combat bots 1306 | -10/Exiles | Reached level 7 1332 | -10/Exiles | Destroyed 22 combat bots 1336 | -10/Exiles | Discovered new exit (range 17) 1343 | -10/Exiles | Upgraded with Utility slot (x3) 1434 | -10/Exiles | Build established: Hacker-Skirmisher 1449 | -10/Exiles | Destroyed 22 combat bots 2157 | -10/Exiles | Discovered new exit (range 10) 2164 | -10/Exiles | Stole two prototypes: Potential Leg, Firepult 2164 | -10/Exiles | Entered Mines 2201 | -9/Mines | Reached level 8 2214 | -9/Mines | Discovered new exit (range 14) 2219 | -9/Mines | Upgraded with Power slot (x1) 2268 | -9/Mines | Learned Materials terminal intel 2526 | -9/Mines | Build established: Scavenger-Skirmisher 2574 | -9/Mines | Discovered new exit (range 16) 2610 | -9/Mines | Entered Materials 2610 | -8/Materials | Accompanied by 2 allies 2611 | -8/Materials | Loaded intel: 8 trap records 2612 | -8/Materials | Loaded intel: 12 terminal locations 2612 | -8/Materials | Reached level 9 2623 | -8/Materials | Led the pair of lost Derelicts to an unsafe place 2625 | -8/Materials | Reached level 10 2734 | -8/Materials | Upgraded with Utility slot (x2) 2812 | -8/Materials | Reached level 11 2939 | -8/Materials | Discovered new exit (range 12) 3005 | -8/Materials | Reached level 12 3010 | -8/Materials | First assault squad dispatched 3038 | -8/Materials | Build established: Hacker-Skirmisher 3287 | -8/Materials | Discovered new exit (range 18) 3308 | -8/Materials | Reached level 13 3464 | -8/Materials | Upgraded with Power slot (x1) 3464 | -8/Materials | Upgraded with Utility slot (x2) 3668 | -8/Materials | Sterilization system engaged 3668 | -8/Materials | Non-combat units ordered to evacuate 3682 | -8/Materials | Destroyed 7 combat bots 3768 | -8/Materials | Combat units ordered to evacuate 3810 | -8/Materials | Discovered new exit (range 10) 3968 | -8/Materials | Ambient heat levels rising (+10) 4118 | -8/Materials | Ambient heat levels rising (+10) 4128 | -8/Materials | Entered Factory 4130 | -7/Factory | FarCom data flow suspended 4130 | -7/Factory | Reached level 14 4192 | -7/Factory | Reached level 15 4209 | -7/Factory | Identified exit to Lower Caves 4209 | -7/Factory | Upgraded with Utility slot (x1) 4501 | -7/Factory | Reached level 16 4528 | -7/Factory | First assault squad dispatched 4748 | -7/Factory | Identified exit to Garrison 4748 | -7/Factory | Entered Garrison 4767 | -7/Garrison | Hacking Suite fried by hacking feedback 4792 | -7/Garrison | Garrison Relay disabled 4837 | -7/Garrison | Garrison Relay disabled 4907 | -7/Garrison | Triggered checkpoint 4907 | -7/Garrison | Triggered checkpoint 4908 | -7/Garrison | Reached level 17 4938 | -7/Garrison | Triggered checkpoint 4947 | -7/Garrison | Triggered checkpoint 5014 | -7/Garrison | Triggered checkpoint 5065 | -7/Garrison | Garrison Relay disabled 5120 | -7/Garrison | Discovered new exit (range 10) 5260 | -7/Garrison | Triggered checkpoint 5284 | -7/Garrison | Garrison Relay disabled 5311 | -7/Garrison | Discovered new exit (range 9) 5423 | -7/Garrison | Discovered new exit (range 11) 5538 | -7/Garrison | Triggered checkpoint 5546 | -7/Garrison | Garrison Relay disabled 5595 | -7/Garrison | Rescued a captive Derelict 5685 | -7/Garrison | Entered Factory 5685 | -7/Factory | Accompanied by 1 ally 5740 | -7/Factory | Identified exit to Garrison 5740 | -7/Factory | Entered Garrison 5740 | -7/Garrison | Accompanied by 1 ally 5778 | -7/Garrison | Triggered checkpoint 5843 | -7/Garrison | Garrison Relay disabled 5860 | -7/Garrison | Garrison Relay disabled 5925 | -7/Garrison | Triggered checkpoint 5925 | -7/Garrison | Triggered checkpoint 5957 | -7/Garrison | Destroyed 9 combat bots 5966 | -7/Garrison | Triggered checkpoint 5975 | -7/Garrison | Triggered checkpoint 6022 | -7/Garrison | Triggered checkpoint 6025 | -7/Garrison | Reached level 18 6040 | -7/Garrison | Garrison Relay disabled 6063 | -7/Garrison | Learned Factory security intel 6109 | -7/Garrison | Discovered new exit (range 10) 6235 | -7/Garrison | Triggered checkpoint 6274 | -7/Garrison | Discovered new exit (range 16) 6368 | -7/Garrison | Discovered new exit (range 5) 6392 | -7/Garrison | Phase Generator disabled 6424 | -7/Garrison | Discovered new exit (range 72) 6424 | -7/Garrison | Discovered new exit (range 86) 6424 | -7/Garrison | Discovered new exit (range 15) 6471 | -7/Garrison | Garrison Relay disabled 6493 | -7/Garrison | Entered Factory 6493 | -6/Factory | Accompanied by 2 allies 6512 | -6/Factory | Identified exit to DSF 6512 | -6/Factory | Entered DSF 6512 | -6/DSF | Accompanied by 2 allies 6514 | -6/DSF | Reached level 19 6548 | -6/DSF | Additional patrols routed to DSF 6614 | -6/DSF | Upgraded with Utility slot (x1) 6621 | -6/DSF | Discovered new exit (range 16) 6733 | -6/DSF | Sterilization system engaged 6753 | -6/DSF | Ambient heat levels rising (+10) 6768 | -6/DSF | Ambient heat levels rising (+10) 6783 | -6/DSF | Ambient heat levels rising (+10) 6787 | -6/DSF | Entered Factory 6789 | -5/Factory | Reached level 20 6811 | -5/Factory | Build established: Wizard-Skirmisher 6910 | -5/Factory | Reached level 21 7064 | -5/Factory | Core integrity fell below 50% 7072 | -5/Factory | Core integrity fell below 20% 7075 | -5/Factory | Upgraded with Utility slot (x1) 7166 | -5/Factory | Repaired Broken Imp. Cryofiber Web 7205 | -5/Factory | Identified exit to Upper Caves 7340 | -5/Factory | Reached level 22 7340 | -5/Factory | Garrison activated, responded to threat 7387 | -5/Factory | First assault squad dispatched 7488 | -5/Factory | Cargo convoy interrupted 7492 | -5/Factory | High security lockdown imminent 7513 | -5/Factory | Destroyed 14 combat bots 7562 | -5/Factory | Reached level 23 7572 | -5/Factory | High security lockdown engaged 7609 | -5/Factory | Destroyed 18 combat bots 7661 | -5/Factory | Destroyed 8 combat bots 7678 | -5/Factory | Found Prototype Launcher 7678 | -5/Factory | Identified Tesla Bomb Launcher 7713 | -5/Factory | Build established: Wizard-Mutant 7780 | -5/Factory | Destroyed self with Firepult Last Messages --------------- 07774_ Imp. Weapon Cycler melted. 07774_ EM Disruption Field melted. 07774_ G-50 Soldier overheating. 07775_ Power failure averted by Imp. Cryofiber Web. 07775_ G-50 Soldier heat damages Carbon-fiber Leg. 07775_ G-50 Soldier critical meltdown. 07775_ G-50 Soldier overheating. 07776_ Power failure averted by Imp. Cryofiber Web. 07776_ G-50 Soldier overheating. 07778_ Firepult emits a massive uncontrolled burst of heat. 07778_ H-71 Marshal critical meltdown. 07778_ EM Disruption Field melted. 07778_ Imp. Dynamic Insulation System melted. 07778_ Imp. Targeting Computer melted. 07778_ Imp. Transmission Jammer melted. 07779_ Power failure averted by Imp. Cryofiber Web. 07780_ Overheating: Energy bleed (-81). 07780_ Carbon-fiber Leg melted. 07780_ Adv. Heat Sink melted. 07780_ G-50 Soldier destroyed. Map ----- +----------------------------------------------------+ | ?????????????????????????????????????????????????? | | #??#????????????????????????????????????"""?"""??? | | #???????????????????????????????????????"""?"""??? | | ?? ????????????????????????????????????"""?"""??? | | ? ?? ????? ???????????????????????????????????? | | " "?"???#? ????????????"""??????????"""?"""??? | | " " "? #??? ??????????"""??????????"""?"""??? | | " " " ?# ? ??????????"""??????????"""?"""??? | | " " "? ?? ???????????????????????????????? | | " " " ##? ? ##???????"""???????????????????? | | " " " ## ? ##???????"""???????????????????? | | " " " ## ##?#?????"""???????????????????? | | " " " ## ? #??????????????????""""""??????? | | " " " #####+#?#?#?????"""???????""""""????#?? | | #?# ?####???"""???????""""""?? #?? | | ##### ######## ? #??"""???????""""""? #?? | | ### %% ? +????????# #?? | | ### =###### ? ? #??"""???# """""" #?? | | ###] ###### ? ?##?# #??"""???# """""" #?? | | ###/]! ######?# ###?## #??"""????? """""" ??? | | %%//]% ########+###### #??????????? """""" ????? | | ###= = # ##### #????????????? ??????? | | ### # "T" ##### ##;#############=######### | | ### # """ + %g!% *%%=%%%!] % | | # #]]] """ #####=% [%%% ]%]%] %% | | # #]]] """ ####=%%@ %%=*!%][ [ | | # #]]] ### %%%%%! | | # # ? # % %=% = | | # # # %%* ############# | | # #####+########=% #????? | | # %% ][=%% [!%= #????? | | # %%=[!===%% [ ]% + #????? | | #*= ][ %=%=[%%*%* # #????? | | #% %* =%%%% [%%%[ % # #????? | | #]%=! ]*%%%%[ * % % # #????? | | #= %%########### % [ ## #????? | | ### * % ####???#?# #? #????? | | !%[ #####?#?# ## # ##? #????? | | !! ##?#????####### ####?? #????? | | = %% ##?#?#????????# #?????? #????? | | != #?#???????????# #?????? ?????? | | |%! % #?????????????# #?????? ?????????? | | = %%#########?##?????????# #?????????????????? | | * |%%%# ? ? ????????????# #?????????????????? | | %% # """?"""????????????? #?????????????????? | | #?"""?"""????????????? #?????????????????? | | #?"""?"""????????????? ??????????????????? | | # ?"" ""????????????? ??????????????????? | | # ?""? ""????????????????????????????????? | | # ????????????????????????????????????? | +----------------------------------------------------+ Best States ------------- Heat Dissipation 151 Coolant Potential 120 Energy Generation 57 Energy Capacity 730 Matter Stores 300 Matter Capacity 300 Sight Range 22 Terrain Scan Range 16 Terrain Scan Density 410 Additional Mass Support 16 Base Temperature (-) 150 Armor Coverage 375 Resistance: KI 20 Resistance: TH 25 Resistance: EM 15 Weapon Cycling 20 Evasion (%) 66 Targeting Accuracy 8 Recoil Reduction 2 Offensive Hacking 50 Defensive Hacking 20 Authchip Count 2 Item Schematics ----------------- Titanium Leg | -8/Materials | Extracted Adv. Weight Redist. System | -8/Materials | Extracted Lgt. Deuterium Engine | -8/Materials | Extracted Imp. Utility Shielding | -8/Materials | Extracted ECM Suite | -8/Materials | Extracted Imp. VTOL Module | -8/Materials | Extracted Hardlight Generator | -8/Materials | Extracted Field Laser | -8/Materials | Extracted VSS Leg | -8/Materials | Extracted Reflective Plating | -8/Materials | Extracted Adv. Treads | -8/Materials | Extracted Imp. EM Shotgun | -8/Materials | Extracted Robot Schematics ------------------ None Fabricated ------------ Nothing Alien Tech Used ----------------- None Achievements -------------- None Challenges ------------ None RPGLIKE | -11 -10 -10 -10 -9 -8 -7 -7 -7 -7 -6 -6 -5 --------- Run | Jun Mat Min Exi Min Mat Fac Gar Fac Gar Fac DSF Fac Levels Raised 22 | . 3 1 2 1 5 3 1 . 1 . 1 4 XP Earned 37112 | 3000 4794 1426 3744 1682 7764 3781 1732 34 1115 734 1007 6299 XP Spent 35945 | 1400 3020 1900 5300 1000 8200 4350 . . . . 4500 6275 Upgrades 71 | 5 10 2 18 2 5 7 . . . . 5 17 Power Slot 2 | . . . . 1 1 . . . . . . . Propulsion Slot 3 | . 1 2 . . . . . . . . . . Utility Slot 10 | . . . 3 . 4 1 . . . . 1 1 Weapon Slot 1 | . 1 . . . . . . . . . . . Core Integrity 11 | . . . . . . . . . . . . 11 Heat Dissipation 21 | . . . 11 . . 5 . . . . 4 1 Energy Generation 2 | . . . 2 . . . . . . . . . Mass Support 2 | 1 1 . . . . . . . . . . . Inventory Capacity 2 | . 1 . . 1 . . . . . . . . Sight Range 2 | . . . 2 . . . . . . . . . Terrain Scan Density 3 | . 3 . . . . . . . . . . . Melee Accuracy 3 | . 3 . . . . . . . . . . . Hack Attack % 2 | 2 . . . . . . . . . . . . Hack Defense % 2 | 2 . . . . . . . . . . . . KI Resistance % 4 | . . . . . . . . . . . . 4 TH Damage % 1 | . . . . . . 1 . . . . . . Protomatter Created 5636 | . 226 46 1138 252 914 254 591 . 453 . 175 1587 Integrity Restored 5273 | . 498 102 725 149 933 379 347 . 557 . 311 1272 Core 4093 | . 498 102 551 30 574 252 212 . 363 . 239 1272 Parts 1180 | . . . 174 119 359 127 135 . 194 . 72 . Protomatter Decayed 1177 | . 39 12 178 46 343 77 116 . 53 . 26 287 Game ------ Seed MatterTerrainThermoblaster Manual? 0 Play Time 01:52:22 Cumulative 561.3 hours Start 2023.04.15 @ 21:10:15 End 2023.04.16 @ 14:43:32 Sessions 1 Manual Loads 0 Difficulty Rogue Special Mode Winter2019/RPGLIKE Game No. 578 Rogue 578 Adventurer 0 Explorer 0 Win Type - Total 1 Types 1/0/0/0/0/0/0/0/0 Lore% 71 Gallery% 85 Achievement% 68 Wizard Run 0 Options --------- ASCII 0 Keyboard 0 Movement Mouse Keybinds 0 Fullscreen 2 Font 24/Smallcaps Map View 76x50 Tactical HUD 1 Map Filters NONE Filters NONE Steam 1 RUN: c91876e6-c8cc-4342-ab5a-7d2aea32c5d8